{"text_format":"1","workbook":"xlsx","n_sheets":5,"sheets":["1. Basis","2. Kosten","3. Toelichting","4. Subsidie","5. Financiering"],"not_rendered":{"charts":0,"images":0,"macros":1,"external_links":0,"defined_names":0,"comments":0,"pivot_tables":0},"unopened":[],"bounds":{"document_bytes":16777216,"sheet_cells":100000,"rows_first":2000,"rows_last":500,"rows_between":2000,"halvings":0,"cell_chars":16384,"cell_head_chars":4096},"cells_cut":0,"cells_raw":0,"read":"whole","date_system":"1900"}

{"sheet":"1. Basis","index":0,"n_rows":87,"n_cols":12,"rows_kept":87,"cut":false,"hidden":false,"merged":[[26,2,27,5],[25,4,25,5],[1,2,1,5],[2,2,2,5],[16,4,16,5],[6,2,6,3],[7,2,7,3],[8,2,8,3],[3,2,3,5],[5,2,5,5],[9,2,9,3],[13,2,13,3],[14,2,14,3],[16,2,16,3],[6,4,6,5],[12,3,12,5],[11,2,11,5],[20,4,20,5],[25,2,25,3],[21,4,21,5],[22,2,22,3],[20,2,20,3],[22,4,22,5],[24,4,24,5],[23,2,23,3],[23,4,23,5],[24,2,24,3],[19,2,19,5],[21,2,21,3],[17,2,17,3],[15,2,15,3],[17,4,17,5]]}
[null,null,null,null,null,null,null,null,null,null,"Indicatief","Taakstelling"]
[null,null,"Uitvoeringsregeling subsidie realisatie asielopvang Noord-Holland 2025 - Begrotingsformat",null,null,null,null,null,null,"<selecteer>",0,0]
[null,null,"Blad 1. Basisgegevens",null,null,null,null,null,1,"Aalsmeer",211,174]
[null,null,"Vul ALLE geel gekleurde cellen in. ",null,null,null,null,null,2,"Alkmaar",603,497]
[null,null,null,null,null,null,null,null,3,"Amstelveen",561,561]
[null,null,"1a. Gemeente",null,null,null,null,null,4,"Amsterdam",4479,4479]
[null,null,"Gemeente",null,"<selecteer>",null,null,null,5,"Bergen",185,150]
[null,null,"Indicatieve opgave gemeente  (capaciteitsraming 31-1-2024)",null,{"$f":"_xlfn.XLOOKUP(E7, J:J, K:K)","v":0}," plaatsen",null,null,6,"Beverwijk",226,184]
[null,null,"Taakstelling gemeente (verdeelbesluit 20-12-2024)",null,{"$f":"_xlfn.XLOOKUP(E7, J:J, L:L)","v":0}," plaatsen",null,null,7,"Blaricum",85,250]
[null,null,"Extra opvangplaatsen (bovenop verdeelbesluit 20-12-2024)",null,0," plaatsen",null,null,8,"Bloemendaal",169,174]
[null,null,null,null,null,null,null,null,9,"Castricum",240,197]
[null,null,"1b. Kenmerken geplande opvangvoorziening",null,null,null,null,null,10,"Den Helder",257,678]
[null,null,"Adres + huisnr. / localisering perceel","<invullen>",null,null,null,null,11,"Diemen",175,143]
[null,null,"Reguliere opvangplaatsen  ",null,null," plaatsen",null,null,12,"Dijk en Waard",526,600]
[null,null,"Bijzondere opvangplaatsen  ",null,0,{"$f":"F14","v":" plaatsen"},null,null,13,"Drechterland",125,125]
[null,null,"Exploitatietermijn  ",null,0," jaar",null,null,14,"Edam-Volendam",236,0]
[null,null,"Geschatte openingsdatum  ",null,"<voer datum in>",null,null,null,15,"Enkhuizen",97,97]
[null,null,"Bouwtype (zie COA-vastgoedgids 2024, deel 4)",null,"<selecteer>",null,null,null,16,"Gooise Meren",389,389]
[null,null,null,null,null,null,null,null,17,"Haarlem",963,963]
[null,null,"1c. Huidige stand van zaken project",null,null,null,null,null,18,"Haarlemmermeer",1015,1015]
[null,null,"College van B&W akkoord met realisatie?",null,"<selecteer>",null,null,null,19,"Heemskerk",224,183]
[null,null,"Gemeenteraad akkoord met realisatie? ",null,"<selecteer>",null,null,null,20,"Heemstede",191,191]
[null,null,"Samenwerking met het COA",null,"<selecteer>",null,null,null,21,"Heiloo",155,126]
[null,null,"Participatie/inspraak over locatiekeuze",null,"<selecteer>",null,null,null,22,"Hilversum",536,434]
[null,null,"Koop- of huurovereenkomst gesloten?",null,"<selecteer>",null,null,null,23,"Hollands Kroon",279,279]
[null,null,"Op welke datum is dit begrotingsformat ingevuld?",null,"<voer datum in>",null,null,null,24,"Hoorn",399,399]
[null,null,"Provincie Noord-Holland",null,null,null,null,null,25,"Huizen",239,200]
[null,null,null,null,null,null,null,null,26,"Koggenland",149,149]
[null,null,null,null,null,null,null,null,27,"Landsmeer",76,0]
[null,null,null,null,null,null,null,null,28,"Laren ",79,50]
[null,null,"<selecteer>",null,null,null,null,null,29,"Medemblik",263,263]
[null,null,"Noodopvang",null,null,null,null,null,30,"Oostzaan",62,0]
[null,null,"Tijdelijke unitbouw",null,null,null,null,null,31,"Opmeer",74,125]
[null,null,"Transformatie bestaand(e) gebouw(en)",null,null,null,null,null,32,"Ouder-Amstel",91,91]
[null,null,"Circulaire flexibele woonoplossingen",null,null,null,null,null,33,"Purmerend",515,80]
[null,null,"Meerjaren Investeringsproject (MJIP)",null,null,null,null,null,34,"Schagen",276,300]
[null,null,"Anders / n.t.b.",null,null,null,null,null,35,"Stede Broec",123,125]
[null,null,null,null,null,null,null,null,36,"Texel",82,0]
[null,null,"<selecteer>",null,null,null,null,null,37,"Uitgeest",88,71]
[null,null,"Gemeenteraad is akkoord",null,null,null,null,null,38,"Uithoorn",190,156]
[null,null,"Raad is of wordt alleen geïnformeerd",null,null,null,null,null,39,"Velsen",377,400]
[null,null,"Besluitvorming raad is gepland",null,null,null,null,null,40,"Waterland",113,219]
[null,null,"Besluit/informeren raad niet nodig",null,null,null,null,null,41,"Wijdemeren",157,129]
[null,null,null,null,null,null,null,null,42,"Wormerland",98,0]
[null,null,"<selecteer>",null,null,null,null,null,43,"Zaanstad",818,1550]
[null,null,"Locatie is nog niet aangemeld bij COA",null,null,null,null,null,44,"Zandvoort",94,94]
[null,null,"Locatie is aangemeld bij COA"]
[null,null,"COA heeft 1e schouw uitgevoerd/gepland"]
[null,null,"COA heeft positief advies gegeven"]
[null,null,"Businesscase wordt opgesteld"]
[null,null,"Bestuursovereenkomst is getekend"]
[]
[null,null,"<selecteer>"]
[null,null,"Ja"]
[null,null,"Volgt nog"]
[null,null,"Anders / n.v.t."]
[]
[null,null,"<selecteer>"]
[null,null,"Planologische toets is nog n.v.t."]
[null,null,"Planologische toets wordt uitgevoerd"]
[null,null,"Planologische toets is gereed"]
[null,null,"Benodigde vergunningen zijn geïnventariseerd"]
[null,null,"Aanvraag benodigde vergunningen is gestart"]
[null,null,"Benodigde vergunningen zijn alle verstrekt"]
[]
[null,null,"<selecteer>"]
[null,null,"Is afgerond"]
[null,null,"Nog niet afgerond"]
[null,null,"Is niet van toepassing"]
[]
[]
[]
[]
[]
[]
[]
[]
[]
[]
[]
[]
[]
[]
[]
[]
[]
[null,null,null,null,null,{"$f":"(E9+E10)-E8","v":0}]

{"sheet":"2. Kosten","index":1,"n_rows":36,"n_cols":10,"rows_kept":36,"cut":false,"hidden":false,"merged":[[29,7,29,8],[27,3,27,4],[28,3,28,4],[33,2,34,9],[5,2,5,3],[7,2,7,9],[24,7,24,8],[23,7,23,8],[24,3,24,4],[1,2,1,9],[2,2,2,9],[23,3,23,4],[32,2,32,8],[29,3,29,4],[25,7,25,8],[26,7,26,8],[27,7,27,8],[28,7,28,8],[4,7,5,9],[30,2,30,8],[20,2,20,8],[4,2,4,3],[22,2,22,4],[25,3,25,4],[26,3,26,4]]}
[]
[null,null,"Uitvoeringsregeling subsidie realisatie asielopvang Noord-Holland 2025 - Begrotingsformat"]
[null,null,"Blad 2. Berekening subsidiabele kosten"]
[null,null,"Vul alleen de geel gekleurde cellen in. "]
[null,null,"  Gemeente:",null,{"$f":"IF('1. Basis'!E7='4. Subsidie'!F23,'4. Subsidie'!F25,'1. Basis'!E7)","v":"<in te vullen op blad 1>"}]
[null,null,"  Opvangvoorziening:",null,{"$f":"IF('1. Basis'!D13='4. Subsidie'!F24,'4. Subsidie'!F25,'1. Basis'!D13)","v":"<in te vullen op blad 1>"}]
[]
[null,null,"2a. Personele capaciteit  -  kosten"]
[null,null,"Nummer ","Functietitel","Voor- en achternaam","Datum start werkzaamheden","Datum afronding werkzaamheden","Bruto uurtarief","Aantal uren inzet werkzaamheden","Bruto \ntotaal"]
[null,null,"Voorbeeld","Communicatieadviseur","Hans de Vries","2025-01-01","2025-03-20",75,50,{"$f":"H10*I10","v":3750}]
[null,null,"Functie 1: ","<functietitel>","<voor- en achternaam>","<datum>","<datum>",0,0,{"$f":"H11*I11","v":0}]
[null,null,"Functie 2: ","<functietitel>","<voor- en achternaam>","<datum>","<datum>",0,0,{"$f":"H12*I12","v":0}]
[null,null,"Functie 3: ","<functietitel>","<voor- en achternaam>","<datum>","<datum>",0,0,0]
[null,null,"Functie 4: ","<functietitel>","<voor- en achternaam>","<datum>","<datum>",0,0,0]
[null,null,"Functie 5: ","<functietitel>","<voor- en achternaam>","<datum>","<datum>",0,0,0]
[null,null,"Functie 6: ","<functietitel>","<voor- en achternaam>","<datum>","<datum>",0,0,0]
[null,null,"Functie 7: ","<functietitel>","<voor- en achternaam>","<datum>","<datum>",0,0,0]
[null,null,"Functie 8: ","<functietitel>","<voor- en achternaam>","<datum>","<datum>",0,0,0]
[null,null,"Functie 9: ","<functietitel>","<voor- en achternaam>","<datum>","<datum>",0,0,0]
[null,null,"Functie 10: ","<functietitel>","<voor- en achternaam>","<datum>","<datum>",0,0,0]
[null,null,"Totaal personele capaciteit",null,null,null,null,null,null,{"$f":"SUM(J11:J20)","v":0}]
[]
[null,null,"2b. Expertise (rapportages)  -  kosten"]
[null,null,"Nummer ","Naam levering",null,"Datum opdrachtverlening","Datum \noplevering","Leverancier",null,"Bruto opdrachtsom"]
[null,null,"Voorbeeld","Haalbaarheidsonderzoek X",null,"2025-01-01","2025-03-20","Royal Haskoning DHV",null,15000]
[null,null,"Rapport 1: ","<naam rapportage>",null,"<datum>","<datum>","<naam leverancier>",null,0]
[null,null,"Rapport 2: ","<naam rapportage>",null,"<datum>","<datum>","<naam leverancier>",null,0]
[null,null,"Rapport 3: ","<naam rapportage>",null,"<datum>","<datum>","<naam leverancier>",null,0]
[null,null,"Rapport 4: ","<naam rapportage>",null,"<datum>","<datum>","<naam leverancier>",null,0]
[null,null,"Rapport 5: ","<naam rapportage>",null,"<datum>","<datum>","<naam leverancier>",null,0]
[null,null,"Totaal expertise",null,null,null,null,null,null,{"$f":"SUM(J26:J30)","v":0}]
[]
[null,null,"Subsidiabele kosten totaal",null,null,null,null,null,null,{"$f":"J21+J31","v":0}]
[null,null,"Provincie Noord-Holland"]
[]
["-"]

{"sheet":"3. Toelichting","index":2,"n_rows":28,"n_cols":4,"rows_kept":28,"cut":false,"hidden":false,"merged":[[27,2,28,3],[1,2,1,3],[2,2,2,3],[3,2,3,3],[8,2,8,3],[21,2,21,3],[7,2,7,3],[20,2,20,3]]}
[]
[null,null,"Uitvoeringsregeling subsidie realisatie asielopvang Noord-Holland 2025 - Begrotingsformat"]
[null,null,"Blad 3. Toelichting subsidiabele kosten"]
[null,null,"Let op: vul eerst tabblad 2 in. Vul vervolgens ALLE cellen in dit blad in die geel kleuren."]
[null,null,"  Gemeente:",{"$f":"IF('1. Basis'!E7='4. Subsidie'!F23,'4. Subsidie'!F25,'1. Basis'!E7)","v":"<in te vullen op blad 1>"}]
[null,null,"  Opvangvoorziening:",{"$f":"IF('1. Basis'!D13='4. Subsidie'!F24,'4. Subsidie'!F25,'1. Basis'!D13)","v":"<in te vullen op blad 1>"}]
[]
[null,null,"3a.  Personele capaciteit  -  toelichting   "]
[null,null,"Geef hieronder per functie/persoon een beschrijving van de te verrichten werkzaamheden waarvoor subsidie wordt aangevraagd. Motiveer daarbij waarom deze noodzakelijk zijn voor de realisatie van de opvangvoorziening. "]
[null,null,{"$f":"'2. Kosten'!C11&'2. Kosten'!D11","v":"Functie 1: <functietitel>"},"<geef hier een beschrijving van de werkzaakheden, en motiveer noodzaak daarvan>"]
[null,null,{"$f":"'2. Kosten'!C12&'2. Kosten'!D12","v":"Functie 2: <functietitel>"},"<geef hier een beschrijving van de werkzaakheden, en motiveer noodzaak daarvan>"]
[null,null,{"$f":"'2. Kosten'!C13&'2. Kosten'!D13","v":"Functie 3: <functietitel>"},"<geef hier een beschrijving van de werkzaakheden, en motiveer noodzaak daarvan>"]
[null,null,{"$f":"'2. Kosten'!C14&'2. Kosten'!D14","v":"Functie 4: <functietitel>"},"<geef hier een beschrijving van de werkzaakheden, en motiveer noodzaak daarvan>"]
[null,null,{"$f":"'2. Kosten'!C15&'2. Kosten'!D15","v":"Functie 5: <functietitel>"},"<geef hier een beschrijving van de werkzaakheden, en motiveer noodzaak daarvan>"]
[null,null,{"$f":"'2. Kosten'!C16&'2. Kosten'!D16","v":"Functie 6: <functietitel>"},"<geef hier een beschrijving van de werkzaakheden, en motiveer noodzaak daarvan>"]
[null,null,{"$f":"'2. Kosten'!C17&'2. Kosten'!D17","v":"Functie 7: <functietitel>"},"<geef hier een beschrijving van de werkzaakheden, en motiveer noodzaak daarvan>"]
[null,null,{"$f":"'2. Kosten'!C18&'2. Kosten'!D18","v":"Functie 8: <functietitel>"},"<geef hier een beschrijving van de werkzaakheden, en motiveer noodzaak daarvan>"]
[null,null,{"$f":"'2. Kosten'!C19&'2. Kosten'!D19","v":"Functie 9: <functietitel>"},"<geef hier een beschrijving van de werkzaakheden, en motiveer noodzaak daarvan>"]
[null,null,{"$f":"'2. Kosten'!C20&'2. Kosten'!D20","v":"Functie 10: <functietitel>"},"<geef hier een beschrijving van de werkzaakheden, en motiveer noodzaak daarvan>"]
[]
[null,null,"3b. Expertise (rapportages)  -  toelichting"]
[null,null,"Geef hieronder per rapport waarvoor subsidie wordt aangevraagd een duidelijke beschrijving van het doel ervan. Motiveer daarbij waarom de rapportage noodzakelijk is voor de realisatie van de opvangvoorziening. "]
[null,null,{"$f":"'2. Kosten'!C26&'2. Kosten'!H26","v":"Rapport 1: <naam leverancier>"},"<geef hier een beschrijving van het doel van het rapport, en motiveer de noodzaak>"]
[null,null,{"$f":"'2. Kosten'!C27&'2. Kosten'!H27","v":"Rapport 2: <naam leverancier>"},"<geef hier een beschrijving van het doel van het rapport, en motiveer de noodzaak>"]
[null,null,{"$f":"'2. Kosten'!C28&'2. Kosten'!H28","v":"Rapport 3: <naam leverancier>"},"<geef hier een beschrijving van het doel van het rapport, en motiveer de noodzaak>"]
[null,null,{"$f":"'2. Kosten'!C29&'2. Kosten'!H29","v":"Rapport 4: <naam leverancier>"},"<geef hier een beschrijving van het doel van het rapport, en motiveer de noodzaak>"]
[null,null,{"$f":"'2. Kosten'!C30&'2. Kosten'!H30","v":"Rapport 5: <naam leverancier>"},"<geef hier een beschrijving van het doel van het rapport, en motiveer de noodzaak>"]
[null,null,"Provincie Noord-Holland"]

{"sheet":"4. Subsidie","index":3,"n_rows":25,"n_cols":7,"rows_kept":25,"cut":false,"hidden":false,"merged":[[17,2,18,5],[1,6,18,6],[3,2,3,5],[13,2,13,3],[13,4,13,5],[14,2,14,3],[14,4,14,5],[15,2,15,3],[15,4,15,5],[1,2,1,5],[2,2,2,5],[4,3,4,5],[5,3,5,5],[16,2,16,3],[16,4,16,5]]}
[]
[null,null,"Uitvoeringsregeling subsidie realisatie asielopvang Noord-Holland 2025 - Begrotingsformat",null,null,null,"(selecteer)"]
[null,null,"Blad 4. Subsidiehoogte"]
[null,null,"De gegevens in dit tabblad worden automatisch berekend op basis van de gegevens uit tabel 1 en 2."]
[null,null,"  Gemeente:",{"$f":"IF('1. Basis'!E7='4. Subsidie'!F23,'4. Subsidie'!F25,'1. Basis'!E7)","v":"<in te vullen op blad 1>"}]
[null,null,"  Opvangvoorziening:",{"$f":"IF('1. Basis'!D13='4. Subsidie'!F24,'4. Subsidie'!F25,'1. Basis'!D13)","v":"<in te vullen op blad 1>"}]
[]
[null,null,"4. Subsidiehoogte","Subsidie-\npercentage","Plafond subsidiebedrag","Toe- passing"]
[null,null," Basis",0.5,50000,"standaard"]
[null,null," A. Opvangvoorziening zal 5 jaar of langer in bedrijf zijn",0.2,20000,{"$f":"IF('1. Basis'!E16>=5,\"ja\",\"nee\")","v":"nee"}]
[null,null," B. Realisatie bijzondere opvangplaatsen (zoals amv)",0.1,10000,{"$f":"IF('1. Basis'!E15>0, \"ja\",\"nee\")","v":"nee"}]
[null,null," C. Taakstelling ligt boven indicatieve opgave",0.1,10000,{"$f":"IF((('1. Basis'!E9+'1. Basis'!E10)>'1. Basis'!E8), \"ja\",\"nee\")","v":"nee"}]
[]
[null,null," Toe te passen plafondbedrag subsidie:",null,{"$f":"E9+SUMIF(F10:F12,\"ja\",E10:E12)","v":50000}]
[null,null," Toe te passen subsidiepercentage:",null,{"$f":"D9+SUMIF(F10:F12,\"ja\",D10:D12)","v":0.5}]
[null,null," Subsidiabele kosten project:",null,{"$f":"'2. Kosten'!J33","v":0}]
[null,null,"Gevraagd subsidiebedrag:",null,{"$f":"MIN(E16*E15,E14)","v":0}]
[null,null,"Provincie Noord-Holland"]
[]
[]
[]
[]
[null,null,null,null,null,"<selecteer>"]
[null,null,null,null,null,"<invullen>"]
[null,null,null,null,null,"<in te vullen op blad 1>"]

{"sheet":"5. Financiering","index":4,"n_rows":20,"n_cols":9,"rows_kept":20,"cut":false,"hidden":false,"merged":[[4,3,4,5],[5,3,5,5],[1,6,20,6],[3,2,3,5],[7,2,7,4],[1,2,1,5],[2,2,2,5],[9,2,9,3],[8,2,8,3],[15,2,17,2],[19,2,20,5]]}
[]
[null,null,"Uitvoeringsregeling subsidie realisatie asielopvang Noord-Holland 2025 - Begrotingsformat"]
[null,null,"Blad 5. Financieringsplan"]
[null,null,"Vul alleen de geel gekleurde cellen in. "]
[null,null,"  Gemeente:",{"$f":"IF('1. Basis'!E7='4. Subsidie'!F23,'4. Subsidie'!F25,'1. Basis'!E7)","v":"<in te vullen op blad 1>"}]
[null,null,"  Opvangvoorziening:",{"$f":"IF('1. Basis'!D13='4. Subsidie'!F24,'4. Subsidie'!F25,'1. Basis'!D13)","v":"<in te vullen op blad 1>"}]
[]
[null,null,"5. Dekkingsbronnen",null,null,"Bedrag (€) "]
[null,null,"Totale subsidiabele kosten: ",null,null,{"$f":"'2. Kosten'!J33","v":0}]
[null,null,"Eigen bijdrage gemeente",null,null,0,null,null,"Reeds verleend? (kies)  ↓"]
[null,null,"Bijdragen derden","PNH - deze uitvoeringsregeling","Nog niet verleend",{"$f":"'4. Subsidie'!E17","v":0},null,null,"Reeds verleend"]
[null,null,null,"<naam organisatie en regeling>","Reeds verleend? (kies)  ↓",0,null,null,"Nog niet verleend"]
[null,null,null,"<naam organisatie en regeling>","Reeds verleend? (kies)  ↓",0]
[null,null,null,"<naam organisatie en regeling>","Reeds verleend? (kies)  ↓",0]
[null,null,null,"<naam organisatie en regeling>","Reeds verleend? (kies)  ↓",0]
[null,null,"Overige inkomsten / bijdragen","<naam financieringsbron>","Reeds verleend? (kies)  ↓",0]
[null,null,null,"<naam financieringsbron>","Reeds verleend? (kies)  ↓",0]
[null,null,null,"<naam financieringsbron>","Reeds verleend? (kies)  ↓",0]
[null,null,"Totaal dekking: ",null,null,{"$f":"SUM(F10:F18)","v":0}]
[null,null,"Provincie Noord-Holland"]